fUST/lending_fUST_20250415
["ID","MTS","AMOUNT","RATE_DAILY","PERIOD"]
[358091323,1744703445234,-500.0,0.00024657,2]
[358091324,1744703445243,-500.0,0.00024657,2]
[358091325,1744703445252,-500.0,0.00024657,2]
[358091326,1744703445272,-500.0,0.00024657,2]
[358091327,1744703445283,-500.0,0.00024657,2]
[358091328,1744703445292,-500.0,0.00024657,2]
[358091329,1744703445302,-500.0,0.00024657,2]
[358091330,1744703445312,-566.97,0.00024657,2]
[358091331,1744703445322,-500.0,0.00024657,2]
[358091332,1744703445331,-670.97,0.00024657,2]
[358091333,1744703445341,-500.0,0.00024657,2]
[358091334,1744703445351,-1326.48,0.00024657,2]
[358091335,1744703445360,-500.0,0.00024657,2]
[358091336,1744703445368,-500.0,0.00024657,2]
[358091337,1744703445377,-500.0,0.00024657,2]
[358091338,1744703445385,-690.78,0.00024657,2]
[358091339,1744703445393,-500.0,0.00024657,2]
[358091340,1744703445401,-500.0,0.00024657,2]
[358091341,1744703445408,-1281.55,0.00024657,2]
[358091342,1744703445417,-500.0,0.00024657,2]
[358091343,1744703445426,-168.86897996,0.00024657,2]
[358091344,1744703445436,-929.46,0.00024657,2]
[358091345,1744703445445,-500.0,0.00024657,2]
[358091346,1744703445454,-500.0,0.00024657,2]
[358091347,1744703445464,-536.03404758,0.00024657,2]
[358091348,1744703445474,-227.034093,0.00024657,7]
[358091349,1744703445484,-801.541631,0.00024657,7]
[358091350,1744703445493,-227.034093,0.00024657,7]
[358091351,1744703445503,-801.541631,0.00024657,7]
[358091352,1744703445513,-227.034093,0.00024657,7]
[358091353,1744703445522,-801.541631,0.00024657,7]
[358091354,1744703445531,-227.034093,0.00024657,7]
[358091355,1744703445541,-227.034093,0.00024657,7]
[358091356,1744703445550,-801.541631,0.00024657,7]
[358091357,1744703445560,-227.034093,0.00024657,7]
[358091358,1744703445569,-801.541631,0.00024657,7]
[358091359,1744703445579,-227.034093,0.00024657,7]
[358091360,1744703445589,-801.541631,0.00024657,7]
[358091361,1744703445598,-227.034093,0.00024657,7]
[358091362,1744703445608,-801.541631,0.00024657,7]
[358091363,1744703445618,-227.034093,0.00024657,7]
[358091364,1744703445627,-801.541631,0.00024657,7]
[358091365,1744703445637,-227.034093,0.00024657,7]
[358091366,1744703445646,-801.541631,0.00024657,7]
[358091367,1744703445655,-227.034093,0.00024657,7]
[358091368,1744703445665,-227.034093,0.00024657,7]
[358091369,1744703445675,-801.541631,0.00024657,7]
[358091370,1744703445685,-801.541631,0.00024657,7]
[358091371,1744703445695,-227.034093,0.00024657,7]
[358091372,1744703445704,-500.0,0.00024657,2]
[358091373,1744703445714,-801.541631,0.00024657,7]
[358091374,1744703445723,-660.65,0.00024657,2]
[358091375,1744703445733,-227.034093,0.00024657,7]
[358091376,1744703445743,-801.541631,0.00024657,7]
[358091377,1744703445753,-500.0,0.00024657,2]
[358091378,1744703445763,-227.034093,0.00024657,7]
[358091379,1744703445772,-801.541631,0.00024657,7]
[358091380,1744703445783,-227.034093,0.00024657,7]
[358091381,1744703445792,-227.034093,0.00024657,7]
[358091382,1744703445801,-227.034093,0.00024657,7]
[358091383,1744703445811,-801.541631,0.00024657,7]
[358091384,1744703445823,-227.034093,0.00024657,7]
[358091385,1744703445834,-801.541631,0.00024657,7]
[358091386,1744703445843,-227.034088,0.00024657,7]
[358091387,1744703445853,-801.541631,0.00024657,7]
[358091388,1744703445863,-801.541631,0.00024657,7]
[358091389,1744703445873,-801.541631,0.00024657,7]
[358091390,1744703445882,-801.541631,0.00024657,7]
[358091391,1744703445892,-4310.28,0.00024657,2]
[358091392,1744703445906,-500.0,0.00024657,2]
[358091393,1744703445916,-500.0,0.00024657,2]
[358091394,1744703445926,-500.0,0.00024657,2]
[358091395,1744703445935,-500.0,0.00024657,2]
[358091396,1744703445945,-849.67,0.00024657,2]
[358091397,1744703445955,-500.0,0.00024657,2]
[358091398,1744703445965,-500.0,0.00024657,2]
[358091399,1744703445975,-500.0,0.00024657,2]
[358091400,1744703445984,-500.0,0.00024657,2]
[358091401,1744703445994,-512.75,0.00024657,2]
[358091402,1744703446003,-500.0,0.00024657,2]
[358091403,1744703446013,-557.24,0.00024657,2]
[358091404,1744703446023,-500.0,0.00024657,2]
[358091406,1744703446032,-517.84671934,0.00024657,2]
[358091407,1744703446043,-151.0,0.00024657,7]
[358091408,1744703446053,-500.0,0.00024657,2]
[358091409,1744703446064,-500.0,0.00024657,2]
[358091412,1744703446073,-151.0,0.00024657,7]
[358091414,1744703446082,-500.0,0.00024657,2]
[358091416,1744703446092,-151.0,0.00024657,7]
[358091418,1744703446102,-151.0,0.00024657,7]
[358091420,1744703446111,-500.0,0.00024657,2]
[358091422,1744703446121,-532.10062735,0.00024657,2]
[358091424,1744703446131,-151.0,0.00024657,7]
[358091426,1744703446142,-180.672176,0.00024657,7]
[358091429,1744703446152,-6417.41,0.00024657,2]
[358091431,1744703446162,-500.0,0.00024657,2]
[358091433,1744703446172,-500.0,0.00024657,2]
[358091435,1744703446182,-581.2,0.00024657,2]
[358091437,1744703446193,-581.2,0.00024657,2]
[358091439,1744703446203,-581.2,0.00024657,2]
[358091441,1744703446213,-581.2,0.00024657,2]
[358091443,1744703446223,-581.2,0.00024657,2]
[358091445,1744703446234,-581.2,0.00024657,2]
[358091447,1744703446244,-581.2,0.00024657,2]
[358091448,1744703446254,-8612.39,0.00024657,2]
[358091449,1744703446264,-581.2,0.00024657,2]
[358091451,1744703446274,-581.2,0.00024657,2]
[358091453,1744703446284,-581.2,0.00024657,2]
[358091455,1744703446294,-581.2,0.00024657,2]
[358091457,1744703446304,-560.67,0.00024657,2]
[358091459,1744703446314,-581.2,0.00024657,2]
[358091461,1744703446324,-581.2,0.00024657,2]
[358091464,1744703446334,-581.2,0.00024657,2]
[358091466,1744703446344,-581.2,0.00024657,2]
[358091468,1744703446354,-1132.61,0.00024657,2]
[358091488,1744703446534,-581.2,0.00024657,2]
[358091490,1744703446544,-500.0,0.00024657,2]
[358091492,1744703446554,-1000.0,0.00024657,14]
[358091495,1744703446564,-581.2,0.00024657,2]
[358091497,1744703446574,-581.2,0.00024657,2]
[358091499,1744703446583,-581.2,0.00024657,2]
[358091501,1744703446593,-581.2,0.00024657,2]
[358091503,1744703446602,-581.2,0.00024657,2]
[358091505,1744703446611,-500.0,0.00024657,2]
[358091507,1744703446620,-581.2,0.00024657,2]
[358091509,1744703446630,-581.2,0.00024657,2]
[358091511,1744703446640,-581.37559101,0.00024657,2]
[358091513,1744703446650,-151.0,0.00024657,7]
[358091515,1744703446659,-151.0,0.00024657,7]
[358091517,1744703446668,-592.74,0.00024657,2]
[358091519,1744703446677,-151.0,0.00024657,7]
[358091521,1744703446686,-1522.81,0.00024657,2]
[358091522,1744703446696,-1951.92,0.00024657,2]
[358091523,1744703446705,-500.0,0.00024657,2]
[358091524,1744703446714,-500.0,0.00024657,2]
[358091525,1744703446723,-500.0,0.00024657,2]
[358091526,1744703446732,-500.0,0.00024657,2]
[358091527,1744703446743,-500.0,0.00024657,2]
[358091528,1744703446753,-500.0,0.00024657,2]
[358091529,1744703446763,-500.0,0.00024657,2]
[358091530,1744703446772,-500.0,0.00024657,2]
[358091531,1744703446781,-500.0,0.00024657,2]
[358091532,1744703446792,-500.0,0.00024657,2]
[358091533,1744703446802,-501.18847584,0.00024657,2]
[358091534,1744703446812,-1474.8,0.00024657,2]
[358091535,1744703446824,-224.19824897,0.00024657,2]
[358091536,1744703446835,-342.81671627,0.00024657,2]
[358091537,1744703446844,-672.08,0.00024657,2]
[358091538,1744703446854,-500.0,0.00024657,2]
[358091539,1744703446864,-1357.687911,0.00024657,7]
[358091540,1744703446874,-1357.687911,0.00024657,7]
[358091541,1744703446884,-1357.687911,0.00024657,7]
[358091542,1744703446894,-631.63860109,0.00024657,2]
[358091543,1744703446904,-1357.687911,0.00024657,7]
[358091544,1744703446915,-1152.48,0.00024657,2]
[358091545,1744703446925,-1357.687911,0.00024657,7]
[358091546,1744703446935,-598.1,0.00024657,2]
[358091547,1744703446946,-1357.687911,0.00024657,7]
[358091548,1744703446956,-1357.687911,0.00024657,7]
[358091549,1744703446967,-1357.687911,0.00024657,7]
[358091550,1744703446977,-1357.687911,0.00024657,7]
[358091551,1744703446988,-1357.687911,0.00024657,7]
[358091552,1744703446998,-1357.687911,0.00024657,7]
[358091553,1744703447008,-500.0,0.00024657,2]
[358091554,1744703447019,-500.0,0.00024657,2]
[358091555,1744703447029,-1357.687911,0.00024657,7]
[358091556,1744703447039,-1357.687911,0.00024657,7]
[358091557,1744703447049,-1357.687911,0.00024657,7]
[358091558,1744703447060,-1357.687911,0.00024657,7]
[358091559,1744703447070,-1357.687911,0.00024657,7]
[358091560,1744703447080,-519.08750435,0.00024657,2]
[358091561,1744703447090,-1357.687911,0.00024657,7]
[358091562,1744703447100,-1357.687911,0.00024657,7]
[358091563,1744703447110,-1357.687911,0.00024657,7]
[358091564,1744703447121,-1357.687911,0.00024657,7]
[358091565,1744703447131,-790.86,0.00024657,2]
[358091566,1744703447142,-500.0,0.00024657,2]
[358091567,1744703447152,-500.0,0.00024657,2]
[358091568,1744703447163,-1308.53,0.00024657,2]
[358091569,1744703447174,-817.75,0.00024657,2]
[358091570,1744703447184,-357.4835427,0.00024657,2]
[358091571,1744703447195,-464.615,0.00024657,2]
[358091572,1744703447206,-500.0,0.00024657,2]
[358091573,1744703447217,-500.0,0.00024657,2]
[358091574,1744703447227,-500.0,0.00024657,2]
[358091575,1744703447238,-504.46597497,0.00024657,2]
[358091576,1744703447248,-500.0,0.00024657,2]
[358091577,1744703447259,-500.72850528,0.00024657,2]
[358091578,1744703447269,-507.03440581,0.00024657,2]
[358091579,1744703447279,-500.0,0.00024657,2]
[358091580,1744703447290,-1046.58,0.00024657,2]
[358091581,1744703447300,-500.0,0.00024657,2]
[358091582,1744703447311,-512.80038774,0.00024657,2]
[358091583,1744703447323,-638.4,0.00024657,2]
[358091584,1744703447333,-500.0,0.00024657,2]
[358091585,1744703447344,-504.71060265,0.00024657,2]
[358091586,1744703447355,-753.3,0.00024657,2]
[358091587,1744703447365,-1094.74,0.00024657,2]
[358091588,1744703447376,-662.884083,0.00024657,7]
[358091589,1744703447397,-662.884083,0.00024657,7]
[358091590,1744703447411,-662.884083,0.00024657,7]
[358091591,1744703447422,-500.0,0.00024657,2]
[358091592,1744703447432,-662.884083,0.00024657,7]
[358091593,1744703447443,-662.884083,0.00024657,7]
[358091594,1744703447455,-2151.37,0.00024657,2]
[358091595,1744703447466,-662.884083,0.00024657,7]
[358091596,1744703447477,-662.884083,0.00024657,7]
[358091597,1744703447488,-511.51661677,0.00024657,2]
[358091598,1744703447498,-662.884083,0.00024657,7]
[358091599,1744703447509,-662.884083,0.00024657,7]
[358091601,1744703447520,-513.03776877,0.00024657,2]
[358091602,1744703447530,-662.884083,0.00024657,7]
[358091603,1744703447541,-500.0,0.00024657,2]
[358091606,1744703447553,-662.884083,0.00024657,7]
[358091607,1744703447563,-500.0,0.00024657,2]
[358091608,1744703447574,-662.884083,0.00024657,7]
[358091609,1744703447585,-1569.94,0.00024657,2]
[358091610,1744703447595,-662.884083,0.00024657,7]
[358091611,1744703447606,-662.884083,0.00024657,7]
[358091612,1744703447617,-662.884083,0.00024657,7]
[358091613,1744703447628,-662.884083,0.00024657,7]
[358091614,1744703447639,-662.884083,0.00024657,7]
[358091615,1744703447650,-662.884083,0.00024657,7]
[358091616,1744703447660,-1951.98,0.00024657,2]
[358091617,1744703447671,-662.884083,0.00024657,7]
[358091618,1744703447681,-662.8840813,0.00024657,7]
[358091619,1744703447691,-2429.29,0.00024657,2]
[358091620,1744703447702,-5036.89,0.00024657,2]
[358091621,1744703447712,-553.25,0.00024657,2]
[358091622,1744703447722,-1995.94,0.00024657,2]
[358091623,1744703447732,-500.0,0.00024657,2]
[358091624,1744703447744,-500.0,0.00024657,2]
[358091625,1744703447754,-500.0,0.00024657,2]
[358091626,1744703447766,-500.0,0.00024657,2]
[358091627,1744703447776,-811.77,0.00024657,2]
[358091628,1744703447787,-500.0,0.00024657,2]
[358091629,1744703447797,-500.0,0.00024657,2]
[358091630,1744703447807,-531.89,0.00024657,2]
[358091631,1744703447819,-676.76,0.00024657,2]
[358091632,1744703447830,-1396.3,0.00024657,2]
[358091633,1744703447841,-500.0,0.00024657,2]
[358091634,1744703447851,-500.0,0.00024657,2]
[358091635,1744703447862,-500.0,0.00024657,2]
[358091636,1744703447873,-500.0,0.00024657,2]
[358091637,1744703447883,-500.0,0.00024657,2]
[358091638,1744703447893,-48250.02,0.00024657,2]
[358091639,1744703447903,-626.98,0.00024657,2]
[358091640,1744703447913,-329.74829562,0.00024657,2]
[358091641,1744703447924,-14623.36,0.00024657,2]
[358091642,1744703447934,-928.41,0.00024657,2]
[358091643,1744703447944,-500.0,0.00024657,2]
[358091644,1744703447955,-500.0,0.00024657,2]
[358091645,1744703447966,-500.0,0.00024657,2]
[358091646,1744703447976,-500.0,0.00024657,2]
[358091647,1744703447987,-500.0,0.00024657,2]
[358091648,1744703447996,-500.0,0.00024657,2]
[358091649,1744703448007,-500.0,0.00024657,2]
[358091650,1744703448017,-500.0,0.00024657,2]
[358091651,1744703448028,-998.17,0.00024657,2]
[358091652,1744703448038,-500.0,0.00024657,2]
[358091653,1744703448048,-500.0,0.00024657,2]
[358091654,1744703448058,-3455.19,0.00024657,2]
[358091655,1744703448069,-500.0,0.00024657,2]
[358091656,1744703448080,-500.0,0.00024657,2]
[358091657,1744703448097,-500.0,0.00024657,2]
[358091658,1744703448109,-511.68,0.00024657,2]
[358091659,1744703448119,-500.0,0.00024657,2]
[358091660,1744703448130,-500.0,0.00024657,2]
[358091661,1744703448140,-1732.81,0.00024657,2]
[358091662,1744703448150,-500.0,0.00024657,2]
[358091663,1744703448161,-758.18,0.00024657,2]
[358091664,1744703448171,-500.0,0.00024657,2]
[358091665,1744703448182,-778.1,0.00024657,2]
[358091666,1744703448192,-1100.78,0.00024657,2]
[358091667,1744703448203,-500.0,0.00024658,2]
[358091668,1744703448213,-500.0,0.00024658,2]
[358091669,1744703448224,-500.0,0.00024658,2]
[358091670,1744703448234,-500.0,0.00024658,2]
[358091671,1744703448246,-189.04300772,0.00024658,2]
[358091672,1744703448257,-500.0,0.00024658,2]
[358091673,1744703448267,-500.0,0.00024658,2]
[358091674,1744703448278,-500.0,0.00024658,2]
[358091675,1744703448290,-500.0,0.00024658,2]
[358091676,1744703448301,-500.0,0.00024658,2]
[358091677,1744703448312,-155.98484411,0.00024658,2]
[358091678,1744703448323,-500.0,0.00024658,2]
[358091679,1744703448334,-500.0,0.00024658,2]
[358091680,1744703448345,-500.0,0.00024658,2]
[358091681,1744703448355,-270.97227916,0.00024658,2]
[358091682,1744703448366,-500.0,0.00024673,2]
[358091683,1744703448377,-500.0,0.00024673,2]
[358091684,1744703448388,-500.0,0.00024673,2]
[358091685,1744703448399,-500.0,0.00024673,2]
[358091686,1744703448410,-314.57182114,0.00024673,2]
[358091687,1744703448420,-506.19871785,0.00024673,2]
[358091688,1744703448431,-303.18400643,0.00024673,2]
[358091689,1744703448442,-507.96810675,0.00024673,2]
[358091690,1744703448452,-500.0,0.00024673,2]
[358091691,1744703448463,-400.50383901,0.00024679,2]
[358091692,1744703448473,-7804.75849472,0.00024682,2]
[358091693,1744703448483,-171.0,0.000247,8]
[358091694,1744703448493,-151.0,0.000248,6]
[358091695,1744703448503,-1226.65894992,0.000248,2]
[358091696,1744703448513,-50075.23072647,0.0002487,2]
[358091697,1744703448523,-151.0,0.000249,5]
[358091698,1744703448533,-15178.2169664,0.000249,2]
[358091699,1744703448543,-2776.61194865,0.000249,5]
[358091700,1744703448553,-358.0,0.00024904,3]
[358091701,1744703448563,-365.97638078,0.00024904,3]
[358091702,1744703448574,-250.15572459,0.00024917,2]
[358091703,1744703448584,-1011.88113109,0.00024921,2]
[358091704,1744703448595,-4047.52452436,0.00024921,2]
[358091705,1744703448606,-408.88631664,0.00024921,2]
[358091706,1744703448617,-30986.16959761,0.00024931,2]
[358091707,1744703448628,-754.65974017,0.00024931,3]
[358091708,1744703448638,-535.71539511,0.00024931,2]
[358091709,1744703448649,-500.0,0.00024931,2]
[358091710,1744703448660,-300.0,0.00024931,2]
[358091711,1744703448670,-521.22141231,0.00024931,2]
[358091712,1744703448681,-500.0,0.00024931,2]
[358091713,1744703448691,-602.87346814,0.00024931,2]
[358091714,1744703448701,-500.0,0.00024931,2]
[358091715,1744703448708,-1081.21,0.00024931,2]
[358091716,1744703448717,-500.0,0.00024931,2]
[358091717,1744703448727,-500.0,0.00024931,2]
[358091718,1744703448738,-500.0,0.00024931,2]
[358091719,1744703448752,-500.0,0.00024931,2]
[358091720,1744703448763,-500.0,0.00024931,2]
[358091721,1744703448772,-1032.68,0.00024931,2]
[358091722,1744703448783,-500.0,0.00024931,2]
[358091723,1744703448791,-500.0,0.00024931,2]
[358091724,1744703448800,-515.38,0.00024931,2]
[358091725,1744703448811,-526.8,0.00024931,2]
[358091726,1744703448822,-500.0,0.00024931,2]
[358091727,1744703448833,-500.0,0.00024931,2]
[358091728,1744703448843,-500.0,0.00024931,2]
[358091729,1744703448853,-877.04,0.00024931,2]
[358091730,1744703448866,-500.0,0.00024931,2]
[358091731,1744703448876,-500.0,0.00024931,2]
[358091732,1744703448887,-500.0,0.00024931,2]
[358091733,1744703449232,-500.0,0.00024931,2]
[358091734,1744703449243,-500.0,0.00024931,2]
[358091735,1744703449253,-500.0,0.00024931,2]
[358091736,1744703449263,-500.0,0.00024931,2]
[358091737,1744703449272,-500.0,0.00024931,2]
[358091738,1744703449282,-500.0,0.00024931,2]
[358091739,1744703449292,-500.0,0.00024931,2]
[358091740,1744703449302,-500.0,0.00024931,2]
[358091741,1744703449311,-500.0,0.00024931,2]
[358091742,1744703449321,-500.0,0.00024931,2]
[358091743,1744703449331,-1500.0,0.00024931,2]
[358091744,1744703449341,-500.0,0.00024931,2]
[358091745,1744703449351,-500.0,0.00024931,2]
[358091746,1744703449361,-500.0,0.00024931,2]
[358091747,1744703449371,-500.0,0.00024931,2]
[358091748,1744703449381,-1663.57,0.00024931,2]
[358091749,1744703449391,-500.0,0.00024931,2]
[358091750,1744703449401,-500.0,0.00024931,2]
[358091751,1744703449418,-158.99223947,0.00024931,2]
[358091752,1744703449433,-500.0,0.00024931,2]
[358091753,1744703449444,-500.0,0.00024931,2]
[358091754,1744703449455,-162.79065232,0.00024931,2]
[358091755,1744703449466,-500.0,0.00024931,2]
[358091756,1744703449476,-500.0,0.00024931,2]
[358091757,1744703449487,-657.4,0.00024931,2]
[358091758,1744703449497,-1375.53,0.00024931,2]
[358091759,1744703449507,-507.14,0.00024931,2]
[358091760,1744703449518,-561.8,0.00024931,2]
[358091761,1744703449528,-500.0,0.00024931,2]
[358091762,1744703449539,-500.0,0.00024931,2]
[358091763,1744703449549,-840.88,0.00024931,2]
[358091764,1744703449560,-500.0,0.00024931,2]
[358091765,1744703449570,-351.40013013,0.00024931,2]
[358091766,1744703449581,-500.0,0.00024931,2]
[358091767,1744703449591,-500.0,0.00024931,2]
[358091768,1744703449602,-989.86,0.00024931,2]
[358091769,1744703449612,-661.17,0.00024931,2]
[358091770,1744703449623,-726.1,0.00024931,2]
[358091771,1744703449633,-1528.25,0.00024931,2]
[358091772,1744703449643,-500.0,0.00024931,2]
[358091773,1744703449654,-500.0,0.00024931,2]
[358091774,1744703449665,-500.0,0.00024931,2]
[358091775,1744703449676,-972.22,0.00024931,2]
[358091776,1744703449687,-500.0,0.00024931,2]
[358091777,1744703449698,-500.0,0.00024931,2]
[358091778,1744703449710,-500.0,0.00024931,2]
[358091779,1744703449721,-500.0,0.00024931,2]
[358091780,1744703449731,-500.0,0.00024931,2]
[358091781,1744703449745,-1465.74,0.00024931,2]
[358091782,1744703449755,-533.22,0.00024931,2]
[358091783,1744703449765,-500.0,0.00024931,2]
[358091784,1744703449775,-500.0,0.00024931,2]
[358091785,1744703449787,-500.0,0.00024931,2]
[358091786,1744703449797,-500.0,0.00024931,2]
[358091787,1744703449807,-500.0,0.00024931,2]
[358091788,1744703449817,-500.0,0.00024931,2]
[358091789,1744703449829,-500.0,0.00024931,2]
[358091790,1744703449840,-500.0,0.00024931,2]
[358091791,1744703449851,-1012.34,0.00024931,2]
[358091792,1744703449861,-500.0,0.00024931,2]
[358091793,1744703449874,-2890.29,0.00024931,2]
[358091794,1744703449885,-500.0,0.00024931,2]
[358091795,1744703449895,-261.59542943,0.00024931,2]
[358091796,1744703449908,-512.12100146,0.00024931,2]
[358091797,1744703449918,-500.0,0.00024931,2]
[358091798,1744703449928,-500.0,0.00024931,2]
[358091799,1744703449939,-1389.46,0.00024931,2]
[358091800,1744703449950,-500.0,0.00024931,2]
[358091801,1744703449960,-525.1659516,0.00024931,2]
[358091802,1744703449970,-500.0,0.00024931,2]
[358091803,1744703449981,-504.16296754,0.00024931,2]
[358091804,1744703449991,-749.27,0.00024931,2]
[358091805,1744703450001,-500.0,0.00024931,2]
[358091806,1744703450011,-1411.74,0.00024931,2]
[358091807,1744703450023,-920.04,0.00024931,2]
[358091808,1744703450033,-512.31227336,0.00024931,2]
[358091809,1744703450044,-1315.52,0.00024931,2]
[358091810,1744703450056,-500.0,0.00024931,2]
[358091811,1744703450066,-638.66,0.00024931,2]
[358091812,1744703450077,-500.0,0.00024931,2]
[358091813,1744703450087,-490.81410915,0.00024931,2]
[358091814,1744703450098,-500.62869799,0.00024931,2]
[358091815,1744703450109,-500.0,0.00024931,2]
[358091816,1744703450119,-500.0,0.00024931,2]
[358091817,1744703450129,-503.69681394,0.00024931,2]
[358091818,1744703450141,-500.0,0.00024931,2]
[358091819,1744703450152,-500.0,0.00024931,2]
[358091820,1744703450162,-721.72,0.00024931,2]
[358091821,1744703450173,-1000.0,0.00024931,2]
[358091822,1744703450183,-500.0,0.00024931,2]
[358091823,1744703450193,-500.0,0.00024931,2]
[358091824,1744703450204,-522.82,0.00024931,2]
[358091825,1744703450215,-500.0,0.00024931,2]
[358091826,1744703450225,-503.15516253,0.00024931,2]
[358091827,1744703450236,-500.0,0.00024931,2]
[358091828,1744703450246,-532.75,0.00024931,2]
[358091829,1744703450256,-500.0,0.00024931,2]
[358091830,1744703450266,-500.0,0.00024931,2]
[358091831,1744703450276,-500.0,0.00024931,2]
[358091832,1744703450286,-822.32,0.00024931,2]
[358091833,1744703450297,-500.0,0.00024931,2]
[358091834,1744703450307,-500.0,0.00024931,2]
[358091835,1744703450317,-547.11,0.00024931,2]
[358091836,1744703450328,-500.0,0.00024931,2]
[358091837,1744703450338,-1207.92,0.00024931,2]
[358091838,1744703450348,-500.0,0.00024931,2]
[358091839,1744703450359,-1148.68,0.00024931,2]
[358091840,1744703450369,-205.54441508,0.00024931,2]
[358091841,1744703450379,-500.0,0.00024931,2]
[358091842,1744703450389,-500.0,0.00024931,2]
[358091843,1744703450399,-500.0,0.00024931,2]
[358091844,1744703450410,-2126.97,0.00024931,2]
[358091845,1744703450419,-950.62,0.00024931,2]
[358091846,1744703450430,-510.80290973,0.00024931,2]
[358091847,1744703450440,-500.0,0.00024931,2]
[358091848,1744703450450,-495.52705382,0.00024931,2]
[358091849,1744703450460,-350.62872781,0.00024931,2]
[358091850,1744703450471,-992.61,0.00024931,2]
[358091851,1744703450481,-500.0,0.00024931,2]
[358091852,1744703450492,-505.39938489,0.00024931,2]
[358091853,1744703450502,-500.0,0.00024931,2]
[358091854,1744703450512,-723.79,0.00024931,2]
[358091855,1744703450522,-500.0,0.00024931,2]
[358091856,1744703450531,-437.30035426,0.00024931,2]
[358091857,1744703450541,-906.35,0.00024931,2]
[358091858,1744703450552,-500.0,0.00024931,2]
[358091859,1744703450562,-1123.0,0.00024931,2]
[358091860,1744703450572,-500.0,0.00024931,2]
[358091861,1744703450582,-500.0,0.00024931,2]
[358091862,1744703450592,-500.0,0.00024931,2]
[358091863,1744703450602,-500.0,0.00024931,2]
[358091864,1744703450612,-500.0,0.00024931,2]
[358091865,1744703450623,-500.0,0.00024931,2]
[358091866,1744703450633,-550.31,0.00024931,2]
[358091867,1744703450643,-500.0,0.00024931,2]
[358091868,1744703450653,-500.0,0.00024931,2]
[358091869,1744703450663,-500.0,0.00024931,2]
[358091870,1744703450674,-500.0,0.00024931,2]
[358091871,1744703450684,-500.0,0.00024931,2]
[358091872,1744703450694,-500.0,0.00024931,2]
[358091873,1744703450704,-500.0,0.00024931,2]
[358091874,1744703450714,-500.0,0.00024931,2]
[358091875,1744703450724,-516.16157168,0.00024931,2]
[358091876,1744703450734,-1215.78,0.00024931,2]
[358091877,1744703450747,-500.0,0.00024931,2]
[358091878,1744703450757,-555.38343233,0.00024931,2]
[358091879,1744703450768,-915.35,0.00024931,2]
[358091880,1744703450778,-592.18,0.00024931,2]
[358091881,1744703450790,-740.03,0.00024931,2]
[358091882,1744703450800,-500.0,0.00024931,2]
[358091883,1744703450809,-500.0,0.00024931,2]
[358091884,1744703450820,-935.96,0.00024931,2]
[358091885,1744703450829,-500.0,0.00024931,2]
[358091886,1744703450839,-1092.84,0.00024931,2]
[358091887,1744703450847,-1897.17,0.00024931,2]
[358091888,1744703450857,-1770.72,0.00024931,2]
[358091889,1744703450867,-500.0,0.00024931,2]
[358091890,1744703450876,-825.25,0.00024931,2]
[358091891,1744703450886,-500.0,0.00024931,2]
[358091892,1744703450894,-1192.3,0.00024931,2]